Workbook

Sheet 단가표
A1: 보조사업 지원단가
A3: 구분 | B3: 단위 | C3: 단가(천원) | D3: 보조 | E3: 비고
A4: 단동하우스설치(내재해형) | B4: ㎡ | C4: 22 이하 | D4: 50% | E4: 전략,육성품목(7종) 이외 품목
A5: 비가림하우스 | B5: 동 | C5: 2,300 이하 | D5: 50%
A6: 노후파이프 교체 | B6: 개 | C6: 10 이하 | D6: 50%
A7: 자동개폐기 | B7: 동 | C7: 800 이하 | D7: 50%
A8: 내부공기순환팬(컨트롤박스 미포함) | B8: 대 | C8: 140 이하 | D8: 50% | E8: 컨트롤박스 별도지원
A9: 무인방제기 | B9: 대 | C9: 4,000 이하 | D9: 50%
A10: 관수·관비시설 | B10: ㎡ | C10: 1 이하 | D10: 50%
A11: 점적관수 | B11: ㎡ | C11: 1 이하 | D11: 50%
A12: 환풍기 | B12: 대 | C12: 20 이하 | D12: 50%
A13: 이동식 저온저장고 | B13: ㎡ | C13: 500 이하 | D13: 50% | E13: 10㎡
A14: 농가형 저온저장고 | B14: ㎡ | C14: 500 이하 | D14: 50% | E14: 100㎡
A15: 스프링클러 | B15: ㎡ | C15: 1 이하 | D15: 50%
A16: 제초용 매트 | B16: ㎡ | C16: 1 이하 | D16: 50%
A17: 비닐피복기 | B17: 대 | C17: 2,000 이하 | D17: 50%
A18: 고설재배시설 | B18: ㎡ | C18: 30 이하 | D18: 50%
A19: 동력살분무기 | B19: 대 | C19: 1,300 이하 | D19: 50%
A20: 자동농약호스릴 | B20: 대 | C20: 2,000 이하 | D20: 50%
A21: 보행형제초기, 보행전동운반차 | B21: 대 | C21: 4,000 이하 | D21: 50%
A22: PO장기성필름 | B22: ㎡ | C22: 3이하 | D22: 50%
A23: 생분해성 필름 | B23: ㎡ | C23: 0.12 이하 | D23: 50%
A24: 솜이불필름 | B24: 롤 | C24: 160이하 | D24: 50%
A25: 마늘건가시설 | B25: ㎡ | C25: 120 이하 | D25: 50%
A26: 보광시설 | B26: ㎡ | C26: 8 이하 | D26: 50%
A27: 컨트롤 박스 | B27: 식 | C27: 800 이하 | D27: 50%

Sheet 원예산업육성, 소득작목 육성
A1: 2021년 원예산업, 소득작목육성 지원
A3: 사업명 | B3: 성명 | C3: 주소 | D3: 재배품목 | E3: 신청량 | F3: 단가 (천원) | G3: 사 업 비(천원) | J3: 비고
G4: 계 | H4: 보조 | I4: 자부담
A5: 소계 | B5: =COUNTA(B6:B10) -> 1 | E5: =SUM(E6:E10) -> 2 | G5: =SUM(G6:G10) -> 4,600 | H5: =SUM(H6:H10) -> 2,300 | I5: =SUM(I6:I10) -> 2,300
A6: 비가림하우스 (동) | B6: 홍길동 | C6: 충효로 111 | D6: 고추 | E6: 2 | F6: 2,300 | G6: =E6*F6 -> 4,600 | H6: =G6/2 -> 2,300 | I6: =G6-H6 -> 2,300
E7: 0 | F7: 2,300 | G7: =E7*F7 -> 0 | H7: =G7/2 -> 0 | I7: =G7-H7 -> 0
F8: 2,300 | G8: 0 | H8: 0 | I8: 0
F9: 2,300 | G9: 0 | H9: 0 | I9: 0
F10: 2,300 | G10: 0 | H10: 0 | I10: 0
A11: 소계 | B11: =COUNTA(B12:B16) -> 1 | E11: =SUM(E12:E16) -> 20 | G11: =SUM(G12:G16) -> 200 | H11: =SUM(H12:H16) -> 100 | I11: =SUM(I12:I16) -> 100
A12: 노후하우스 파이프 교체 (개) | B12: 홍길동 | C12: 충효로 111 | D12: 고추 | E12: 20 | F12: 10 | G12: =E12*F12 -> 200 | H12: =G12/2 -> 100 | I12: =G12-H12 -> 100
E13: 0 | F13: 10 | G13: =E13*F13 -> 0 | H13: =G13/2 -> 0 | I13: =G13-H13 -> 0
F14: 10 | G14: 0 | H14: 0 | I14: 0
F15: 10 | G15: 0 | H15: 0 | I15: 0
F16: 10 | G16: 0 | H16: 0 | I16: 0
A17: 소계 | B17: =COUNTA(B18:B22) -> 1 | E17: =SUM(E18:E22) -> 2 | G17: =SUM(G18:G22) -> 1,600 | H17: =SUM(H18:H22) -> 800 | I17: =SUM(I18:I22) -> 800
A18: 자동개폐기 (동) | B18: 홍길동 | C18: 충효로 111 | D18: 고추 | E18: 2 | F18: 800 | G18: =E18*F18 -> 1,600 | H18: =G18/2 -> 800 | I18: =G18-H18 -> 800
E19: 0 | F19: 800 | G19: =E19*F19 -> 0 | H19: =G19/2 -> 0 | I19: =G19-H19 -> 0
F20: 800 | G20: 0 | H20: 0 | I20: 0
F21: 800 | G21: 0 | H21: 0 | I21: 0
F22: 800 | G22: 0 | H22: 0 | I22: 0
A23: 소계 | B23: =COUNTA(B24:B28) -> 1 | E23: =SUM(E24:E28) -> 2 | G23: =SUM(G24:G28) -> 280 | H23: =SUM(H24:H28) -> 140 | I23: =SUM(I24:I28) -> 140
A24: 내부공기순환팬 (개) | B24: 홍길동 | C24: 충효로 111 | D24: 고추 | E24: 2 | F24: 140 | G24: =E24*F24 -> 280 | H24: =G24/2 -> 140 | I24: =G24-H24 -> 140
E25: 0 | F25: 140 | G25: =E25*F25 -> 0 | H25: =G25/2 -> 0 | I25: =G25-H25 -> 0
F26: 140 | G26: 0 | H26: 0 | I26: 0
F27: 140 | G27: 0 | H27: 0 | I27: 0
F28: 140 | G28: 0 | H28: 0 | I28: 0
A29: 소계 | B29: =COUNTA(B30:B34) -> 1 | E29: =SUM(E30:E34) -> 1 | G29: =SUM(G30:G34) -> 5,000 | H29: =SUM(H30:H34) -> 2,500 | I29: =SUM(I30:I34) -> 2,500
A30: 이동식저온저장고 (동) | B30: 홍길동 | C30: 충효로 111 | D30: 고추 | E30: 1 | F30: 5,000 | G30: =E30*F30 -> 5,000 | H30: =G30/2 -> 2,500 | I30: =G30-H30 -> 2,500
E31: 0 | F31: 5,000 | G31: =E31*F31 -> 0 | H31: =G31/2 -> 0 | I31: =G31-H31 -> 0
F32: 5,000 | G32: 0 | H32: 0 | I32: 0
F33: 5,000 | G33: 0 | H33: 0 | I33: 0
F34: 5,000 | G34: 0 | H34: 0 | I34: 0
A35: 소계 | B35: =COUNTA(B36:B40) -> 1 | E35: =SUM(E36:E40) -> 100 | G35: =SUM(G36:G40) -> 100 | H35: =SUM(H36:H40) -> 50 | I35: =SUM(I36:I40) -> 50
A36: 점적관수 (㎡) | B36: 홍길동 | C36: 충효로 111 | D36: 고추 | E36: 100 | F36: 1 | G36: =E36*F36 -> 100 | H36: =G36/2 -> 50 | I36: =G36-H36 -> 50
E37: 0 | F37: 1 | G37: =E37*F37 -> 0 | H37: =G37/2 -> 0 | I37: =G37-H37 -> 0
F38: 1 | G38: 0 | H38: 0 | I38: 0
F39: 1 | G39: 0 | H39: 0 | I39: 0
F40: 1 | G40: 0 | H40: 0 | I40: 0
A41: 소계 | B41: =COUNTA(B42:B46) -> 1 | E41: =SUM(E42:E46) -> 100 | G41: =SUM(G42:G46) -> 100 | H41: =SUM(H42:H46) -> 50 | I41: =SUM(I42:I46) -> 50
A42: 스프링클러 (㎡) | B42: 홍길동 | C42: 충효로 111 | D42: 고추 | E42: 100 | F42: 1 | G42: =E42*F42 -> 100 | H42: =G42/2 -> 50 | I42: =G42-H42 -> 50
E43: 0 | F43: 1 | G43: =E43*F43 -> 0 | H43: =G43/2 -> 0 | I43: =G43-H43 -> 0
F44: 1 | G44: 0 | H44: 0 | I44: 0
F45: 1 | G45: 0 | H45: 0 | I45: 0
F46: 1 | G46: 0 | H46: 0 | I46: 0
A47: 소계 | B47: =COUNTA(B48:B52) -> 1 | E47: =SUM(E48:E52) -> 100 | G47: =SUM(G48:G52) -> 300 | H47: =SUM(H48:H52) -> 150 | I47: =SUM(I48:I52) -> 150
A48: 장기성PO필름 (㎡) | B48: 홍길동 | C48: 충효로 111 | D48: 고추 | E48: 100 | F48: 3 | G48: =E48*F48 -> 300 | H48: =G48/2 -> 150 | I48: =G48-H48 -> 150
E49: 0 | F49: 3 | G49: =E49*F49 -> 0 | H49: =G49/2 -> 0 | I49: =G49-H49 -> 0
F50: 3 | G50: 0 | H50: 0 | I50: 0
F51: 3 | G51: 0 | H51: 0 | I51: 0
F52: 3 | G52: 0 | H52: 0 | I52: 0
A53: 소계 | B53: =COUNTA(B54:B58) -> 1 | E53: =SUM(E54:E58) -> 500 | G53: =SUM(G54:G58) -> 60 | H53: =SUM(H54:H58) -> 30 | I53: =SUM(I54:I58) -> 30
A54: 생분해성 필름 (㎡) | B54: 홍길동 | C54: 충효로 111 | D54: 고추 | E54: 500 | F54: 0.12 | G54: =E54*F54 -> 60 | H54: =G54/2 -> 30 | I54: =G54-H54 -> 30
E55: 0 | F55: 0.12 | G55: =E55*F55 -> 0 | H55: =G55/2 -> 0 | I55: =G55-H55 -> 0
F56: 0.12 | G56: 0 | H56: 0 | I56: 0
F57: 0.12 | G57: 0 | H57: 0 | I57: 0
F58: 0.12 | G58: 0 | H58: 0 | I58: 0
A59: 소계 | B59: =COUNTA(B60:B64) -> 1 | E59: =SUM(E60:E64) -> 1 | G59: =SUM(G60:G64) -> 2,000 | H59: =SUM(H60:H64) -> 1,000 | I59: =SUM(I60:I64) -> 1,000
A60: 비닐피복기 (대) | B60: 홍길동 | C60: 충효로 111 | D60: 고추 | E60: 1 | F60: 2,000 | G60: =E60*F60 -> 2,000 | H60: =G60/2 -> 1,000 | I60: =G60-H60 -> 1,000
E61: 0 | F61: 2,000 | G61: =E61*F61 -> 0 | H61: =G61/2 -> 0 | I61: =G61-H61 -> 0
F62: 2,000 | G62: 0 | H62: 0 | I62: 0
F63: 2,000 | G63: 0 | H63: 0 | I63: 0
F64: 2,000 | G64: 0 | H64: 0 | I64: 0
A65: 소계 | B65: =COUNTA(B66:B70) -> 1 | E65: =SUM(E66:E70) -> 1 | G65: =SUM(G66:G70) -> 2,000 | H65: =SUM(H66:H70) -> 1,000 | I65: =SUM(I66:I70) -> 1,000
A66: 자동농약호스릴 (대) | B66: 홍길동 | C66: 충효로 111 | D66: 고추 | E66: 1 | F66: 2,000 | G66: =E66*F66 -> 2,000 | H66: =G66/2 -> 1,000 | I66: =G66-H66 -> 1,000
E67: 0 | F67: 2,000 | G67: =E67*F67 -> 0 | H67: =G67/2 -> 0 | I67: =G67-H67 -> 0
F68: 2,000 | G68: 0 | H68: 0 | I68: 0
F69: 2,000 | G69: 0 | H69: 0 | I69: 0
F70: 2,000 | G70: 0 | H70: 0 | I70: 0
A71: 소계 | B71: =COUNTA(B72:B76) -> 1 | E71: =SUM(E72:E76) -> 1 | G71: =SUM(G72:G76) -> 2,000 | H71: =SUM(H72:H76) -> 1,000 | I71: =SUM(I72:I76) -> 1,000
A72: 동력살분무기 (대) | B72: 홍길동 | C72: 충효로 111 | D72: 고추 | E72: 1 | F72: 2,000 | G72: =E72*F72 -> 2,000 | H72: =G72/2 -> 1,000 | I72: =G72-H72 -> 1,000
E73: 0 | F73: 2,000 | G73: =E73*F73 -> 0 | H73: =G73/2 -> 0 | I73: =G73-H73 -> 0
F74: 2,000 | G74: 0 | H74: 0 | I74: 0
F75: 2,000 | G75: 0 | H75: 0 | I75: 0
F76: 2,000 | G76: 0 | H76: 0 | I76: 0
A77: 소계 | B77: =COUNTA(B78:B82) -> 1 | E77: =SUM(E78:E82) -> 1 | G77: =SUM(G78:G82) -> 4,000 | H77: =SUM(H78:H82) -> 2,000 | I77: =SUM(I78:I82) -> 2,000
A78: 보행형제초기 (대) | B78: 홍길동 | C78: 충효로 111 | D78: 고추 | E78: 1 | F78: 4,000 | G78: =E78*F78 -> 4,000 | H78: =G78/2 -> 2,000 | I78: =G78-H78 -> 2,000
E79: 0 | F79: 4,000 | G79: =E79*F79 -> 0 | H79: =G79/2 -> 0 | I79: =G79-H79 -> 0
F80: 4,000 | G80: 0 | H80: 0 | I80: 0
F81: 4,000 | G81: 0 | H81: 0 | I81: 0
F82: 4,000 | G82: 0 | H82: 0 | I82: 0
A83: 소계 | B83: =COUNTA(B84:B88) -> 1 | E83: =SUM(E84:E88) -> 1 | G83: =SUM(G84:G88) -> 4,000 | H83: =SUM(H84:H88) -> 2,000 | I83: =SUM(I84:I88) -> 2,000
A84: 보행전동운반차 (대) | B84: 홍길동 | C84: 충효로 111 | D84: 고추 | E84: 1 | F84: 4,000 | G84: =E84*F84 -> 4,000 | H84: =G84/2 -> 2,000 | I84: =G84-H84 -> 2,000
E85: 0 | F85: 4,000 | G85: =E85*F85 -> 0 | H85: =G85/2 -> 0 | I85: =G85-H85 -> 0
F86: 4,000 | G86: 0 | H86: 0 | I86: 0
F87: 4,000 | G87: 0 | H87: 0 | I87: 0
F88: 4,000 | G88: 0 | H88: 0 | I88: 0
A89: 소계 | B89: =COUNTA(B90:B94) -> 1 | E89: =SUM(E90:E94) -> 20 | G89: =SUM(G90:G94) -> 2,400 | H89: =SUM(H90:H94) -> 1,200 | I89: =SUM(I90:I94) -> 1,200
A90: 마늘건가시설 (㎡) | B90: 홍길동 | C90: 충효로 111 | D90: 고추 | E90: 20 | F90: 120 | G90: =E90*F90 -> 2,400 | H90: =G90/2 -> 1,200 | I90: =G90-H90 -> 1,200
E91: 0 | F91: 120 | G91: =E91*F91 -> 0 | H91: =G91/2 -> 0 | I91: =G91-H91 -> 0
F92: 120 | G92: 0 | H92: 0 | I92: 0
F93: 120 | G93: 0 | H93: 0 | I93: 0
F94: 120 | G94: 0 | H94: 0 | I94: 0

Sheet 오토팜, 스마트팜
A1: 2021년 원예산업육성 지원
A3: 사업명 | B3: 성명 | C3: 주소 | D3: 재배대상지 주소 | E3: 시설원예 면적 (㎡) | F3: 재배품목 | G3: 신청량 | H3: 단가 (천원) | I3: 사 업 비(천원) | L3: 비고
I4: 계 | J4: 보조 | K4: 자부담
A5: 소계 | B5: =COUNTA(B6:B10) -> 1 | G5: =SUM(G6:G10) -> 1 | I5: =SUM(I6:I10) -> 10,000 | J5: =SUM(J6:J10) -> 5,000 | K5: =SUM(K6:K10) -> 5,000
A6: 오토팜, 스마트팜 (동) | B6: 홍길동 | C6: 충효로 111 | D6: 대심리 111 | E6: 2000 | F6: 고추 | G6: 1 | H6: 10,000 | I6: =G6*H6 -> 10,000 | J6: =I6/2 -> 5,000 | K6: =I6-J6 -> 5,000
G7: 0 | H7: 0 | I7: =G7*H7 -> 0 | J7: =I7/2 -> 0 | K7: =I7-J7 -> 0
G8: 0 | H8: 0 | I8: 0 | J8: 0 | K8: 0
G9: 0 | H9: 0 | I9: 0 | J9: 0 | K9: 0
G10: 0 | H10: 0 | I10: 0 | J10: 0 | K10: 0
